Cogmind - Beta 9.6 @@@ ROGUE MODE // 2020.05.01 @ 18:08:58 Player: PhenomPhear Result: Self-destructed Performance ------------- Evolutions (0) 0 Regions Visited (4) 800 Robots Destroyed (28) 140 Value Destroyed (589) 589 Prototype IDs (8) 160 Alien Tech Used (0) 0 Bonus (300) 300 TOTAL SCORE: 1989 Bonus ------- Aligned with FarCom 300 Cogmind --------- Core Integrity 3/250 Matter 259/300 Energy 100/100 System Corruption 0% Temperature Cool (0) Movement Rolling (110) Ox3 Location -9/Mines Parts ------- > --- POWER (1) -------- (None) > --- PROPULSION (2) --- Wheel > --- UTILITY (2) ------ High-capacity Storage Unit Trap Reconfigurator > --- WEAPON (2) ------- Assault Rifle > --- INVENTORY (12) --- Small Storage Unit Structural Scanner Hacking Suite Latent Energy Streamer Peak State ------------ > --- POWER ------------ Light Ion Engine > --- PROPULSION ------- Light Treads Light Treads > --- UTILITY ---------- High-capacity Storage Unit Trap Reconfigurator > --- WEAPON ----------- Firepult > --- INVENTORY -------- Small Storage Unit Structural Scanner Hacking Suite Small Laser Assault Rifle Light Assault Rifle [Rating: 33] Favorites ----------- Power Light Ion Engine Engine Light Ion Engine Propulsion Light Treads Treads Light Treads Wheel Wheel Utility High-capacity Storage Unit Device Improved Terrain Scanner Storage High-capacity Storage Unit Weapon Light Assault Rifle Energy Gun EM Pulse Gun Energy Cannon Latent Energy Streamer Ballistic Gun Light Assault Rifle Special Weapon Mining Laser Build | -11 -10 -10 -10 -9 ------- Run | Scr Mat Min Exi Min Slots Evolved . | . . . . . Power . | . . . . . Propulsion . | . . . . . Utility . | . . . . . Weapon . | . . . . . Parts Attached 27 | 7 10 . 4 6 Power 4 | 1 2 . . 1 Engine 4 | 1 2 . . 1 Core . | . . . . . Reactor . | . . . . . Propulsion 4 | 2 1 . . 1 Treads 3 | 2 1 . . . Leg . | . . . . . Wheel 1 | . . . . 1 Hover . | . . . . . Flight . | . . . . . Utility 4 | 2 1 . 1 . Device 2 | 1 . . 1 . Storage 2 | 1 1 . . . Processor . | . . . . . Hackware . | . . . . . Protection . | . . . . . Artifact . | . . . . . Weapon 15 | 2 6 . 3 4 Energy Gun 3 | 1 1 . . 1 Energy Cannon 3 | . . . 3 . Ballistic Gun 8 | 1 5 . . 2 Ballistic Cannon . | . . . . . Launcher . | . . . . . Special Weapon 1 | . . . . 1 Impact Weapon . | . . . . . Slashing Weapon . | . . . . . Piercing Weapon . | . . . . . Special Melee Weapon . | . . . . . Unidentified Prototypes 3 | . . . 3 . Parts Lost 12 | . 5 . . 7 Power 4 | . 2 . . 2 Propulsion 3 | . 1 . . 2 Utility . | . . . . . Weapon 5 | . 2 . . 3 Highest Loss Streak 3 | . 3 . . 2 Average Slot Usage (%) 91 | . 96 100 91 77 Engine 12 | . 12 14 14 11 Treads 24 | . 27 28 28 11 Device 14 | . 14 14 14 14 Storage 14 | . 14 14 14 14 Energy Gun 7 | . 6 14 6 7 Energy Cannon 1 | . . . 7 . Ballistic Gun 15 | . 19 14 6 14 Naked Turns . | . . . . . Heaviest Build 46 | 12 40 39 46 46 Greatest Support 40 | 40 40 40 40 40 Greatest Overweight (x) 12 | 3 1 . 1 12 Average Overweight (x) . | . . . . 2 Largest Inventory Capacity 12 | 6 12 12 12 12 Average Capacity 11 | 5 11 12 12 12 Most Carried 6 | . 6 6 6 6 Average Carried 3 | . 2 6 6 4 Final Capacity 12 | 6 12 12 12 12 Final Carried 6 | . 6 6 6 4 Class Distribution -------------------- 88% | Mutant 11% | Scavenger-Mutant Dominant Class ---------------- Mutant | -10/Materials Mutant | -10/Mines Mutant | -10/Exiles Mutant | -9/Mines Resources | -11 -10 -10 -10 -9 ----------- Run | Scr Mat Min Exi Min Matter Collected 692 | 186 359 . 40 107 Remotely . | . . . . . Salvage Created 892 | 14 700 . . 178 Parts 59 | 3 47 . . 9 Haulers Intercepted 1 | . 1 . . . Recyclers Shooed 1 | . 1 . . . Parts Field Recycled . | . . . . . Retrieved Matter . | . . . . . Parts Self-Destructed . | . . . . . Prevented . | . . . . . Kills | -11 -10 -10 -10 -9 ------- Run | Scr Mat Min Exi Min Combat Hostiles Destroyed 21 | . 16 . . 5 Melee 1 | . 1 . . . Guns 20 | . 15 . . 5 Classes Destroyed 8 | 1 6 . . 1 Worker 2 | . 2 . . . Tunneler 2 | 1 . . . 1 Hauler 1 | . 1 . . . Recycler 1 | . 1 . . . Operator 1 | . 1 . . . Swarmer 6 | . 6 . . . Grunt 14 | . 10 . . 4 Assembled 1 | . . . . 1 Best Kill Streak 3 | 1 3 . . 3 Combat Bots Only 3 | . 3 . . 2 Max Kills in Single Turn 1 | 1 1 . . 1 Gunslinging . | . . . . . Exploded . | . . . . . Melee 1 | . 1 . . . Uniques/NPCs Destroyed . | . . . . . Combat | -11 -10 -10 -10 -9 -------- Run | Scr Mat Min Exi Min Damage Taken 1358 | . 754 . . 604 Core 247 | . 171 . . 76 Absorbed by Shields . | . . . . . Core Remaining (%) 100 | 100 . . . . Volleys Fired 127 | 3 81 2 . 41 Largest 2 | 2 2 1 . 2 Hottest 100 | 60 60 20 . 100 Shots Fired 204 | 6 144 2 . 52 Gun 201 | 6 144 2 . 49 Cannon . | . . . . . Launcher . | . . . . . Special 3 | . . . . 3 Kinetic 169 | 3 124 2 . 40 Thermal 12 | . . . . 12 Explosive . | . . . . . Electromagnetic 23 | 3 20 . . . Robot Hit Streak 12 | 3 12 . . 11 Robot Miss Streak 5 | 2 4 3 . 5 Penetration Max . | . . . . . Secondary Targets 1 | . . . . 1 Max Gunslinging Chain 1 | . . . . 1 Shots Hit Robots 128 | 3 90 . . 35 Core Hits 58 | 1 43 2 . 12 Critical Hits . | . . . . . Critical Kills . | . . . . . Critical Parts Destroyed . | . . . . . Melee Attacks . | . . . . . Impact . | . . . . . Slashing . | . . . . . Piercing . | . . . . . Sneak Attacks . | . . . . . Combat Hostiles . | . . . . . Follow-up Attacks . | . . . . . Damage Inflicted 1408 | 39 893 33 . 443 Guns 1340 | 39 851 7 . 443 Cannons . | . . . . . Explosions . | . . . . . Melee . | . . . . . Ramming 68 | . 42 26 . . Kinetic 994 | 15 631 7 . 341 Thermal 102 | . . . . 102 Explosive . | . . . . . Electromagnetic 244 | 24 220 . . . Impact . | . . . . . Slashing . | . . . . . Piercing . | . . . . . Highest Corruption . | . . . . . Average Corruption . | . . . . . Corruption Purged . | . . . . . Overload Shots . | . . . . . Overflow Damage . | . . . . . Projectiles . | . . . . . Explosions . | . . . . . Melee . | . . . . . Knockbacks . | . . . . . Impact . | . . . . . Kinetic . | . . . . . Secondary . | . . . . . Self-Inflicted Damage . | . . . . . Shots . | . . . . . Rammed 14 | . 11 3 . . Targets Rammed 14 | . 11 3 . . Kicked . | . . . . . Crushed . | . . . . . Highest Temperature 72 | . 72 . . 12 Average Temperature 24 | . 29 . . 4 Received Heat Transfer 507 | . 234 . . 273 Siege Activations . | . . . . . Robots Corrupted . | . . . . . Combat Hostiles . | . . . . . Parts Fried . | . . . . . Impact Corruptions . | . . . . . Robots Melted . | . . . . . Combat Hostiles . | . . . . . Parts Melted . | . . . . . Heat Transferred 225 | . . . . 225 Parts Sabotaged . | . . . . . Parts Stolen . | . . . . . Parts Stripped . | . . . . . Power Chain Reactions . | . . . . . Missiles Intercepted . | . . . . . Alert | -11 -10 -10 -10 -9 ------- Run | Scr Mat Min Exi Min Peak Influence 221 | 5 221 33 . 65 Average Influence 82 | 2 108 33 . 37 Maximum Alert Level 1 | . 1 . . . Low Security (%) 96 | 100 95 100 . 100 Level 1 3 | . 4 . . . Level 2 . | . . . . . Level 3 . | . . . . . Level 4 . | . . . . . Level 5 . | . . . . . High Security . | . . . . . Max Security . | . . . . . Squads Dispatched 4 | . 4 . . . Investigation 3 | . 3 . . . Extermination . | . . . . . Reinforcement 1 | . 1 . . . Assault . | . . . . . Garrison . | . . . . . Intercept . | . . . . . Construction Impeded . | . . . . . Haulers Reinforced . | . . . . . Stealth | -11 -10 -10 -10 -9 --------- Run | Scr Mat Min Exi Min Distress Signals 3 | . 3 . . . Communications Jammed . | . . . . . Distress Signals . | . . . . . Times Spotted 34 | . 26 . . 8 Peak Tracking Total 4 | . 4 . . 3 Tactical Retreats 1 | . . . . 1 Traps | -11 -10 -10 -10 -9 ------- Run | Scr Mat Min Exi Min Traps Triggered . | . . . . . Indirectly . | . . . . . Trap Hack Attempts . | . . . . . Triggered . | . . . . . Disarmed . | . . . . . Reprogrammed . | . . . . . Reused . | . . . . . Traps Extracted . | . . . . . Installed . | . . . . . Triggered 2 | . . 2 . . Machines | -11 -10 -10 -10 -9 ---------- Run | Scr Mat Min Exi Min Machines Disabled . | . . . . . Max in Single Turn . | . . . . . Machines Sabotaged . | . . . . . Garrisons Compromised . | . . . . . Overloaded Fab Kills . | . . . . . Fab Network Shutdowns . | . . . . . Hacking | -11 -10 -10 -10 -9 --------- Run | Scr Mat Min Exi Min Machines Accessed 5 | . 5 . . . Terminals 4 | . 4 . . . Fabricators . | . . . . . Repair Stations . | . . . . . Recycling Units 1 | . 1 . . . Scanalyzers . | . . . . . Garrison Access . | . . . . . Total Hacks 13 | . 13 . . . Successful 5 | . 5 . . . Failed 7 | . 7 . . . Catastrophic . | . . . . . Database Lockouts 1 | . 1 . . . Manual 12 | . 11 . 1 . Terminals 11 | . 11 . . . Fabricators . | . . . . . Repair Stations . | . . . . . Recycling Units 2 | . 2 . . . Scanalyzers . | . . . . . Garrison Access . | . . . . . Terminal Hacks 3 | . 3 . . . Prototype ID Bank 3 | . 3 . . . Fabricator Hacks . | . . . . . Repair Station Hacks . | . . . . . Recycling Unit Hacks . | . . . . . Scanalyzer . | . . . . . Garrison Access Hacks . | . . . . . Unauthorized Hacks 2 | . 2 . . . Terminals 1 | . 1 . . . Operators 1 | . 1 . . . Fabricators . | . . . . . Repair Stations . | . . . . . Recycling Units 1 | . 1 . . . Tunnel 1 | . 1 . . . Scanalyzers . | . . . . . Garrison Access . | . . . . . Data Cores Recovered . | . . . . . Used . | . . . . . Hacking Detections 4 | . 4 . . . Full Trace Events 1 | . 1 . . . Feedback Events . | . . . . . Feedback Blocked . | . . . . . Robot Schematics Acquired . | . . . . . Robots Built . | . . . . . Matter . | . . . . . Time . | . . . . . Total Robot Build Rating . | . . . . . Part Schematics Acquired . | . . . . . Parts Built . | . . . . . Matter . | . . . . . Time . | . . . . . Total Part Build Rating . | . . . . . Parts Repaired . | . . . . . Time . | . . . . . Parts Recycled . | . . . . . Recycled Matter . | . . . . . Retrieved Matter . | . . . . . Retrieved Components . | . . . . . Parts Scanalyzed . | . . . . . Part Schematics Acquired . | . . . . . Parts Damaged . | . . . . . Bothacking | -11 -10 -10 -10 -9 ------------ Run | Scr Mat Min Exi Min Used RIF Installer . | . . . . . Robots Hacked . | . . . . . Non-combat . | . . . . . Combat . | . . . . . Robot Hacks Applied . | . . . . . Relay Couplers Released . | . . . . . Robots Rewired . | . . . . . Allies Hacked . | . . . . . Hacks Repelled . | . . . . . Allies | -11 -10 -10 -10 -9 -------- Run | Scr Mat Min Exi Min Total Allies . | . . . . . Largest Group . | . . . . . Highest-Rated Group . | . . . . . Highest-Rated Ally . | . . . . . Total Orders . | . . . . . Ally Attacks . | . . . . . Total Damage . | . . . . . Kills . | . . . . . Allies Corrupted . | . . . . . Allies Melted . | . . . . . Intel | -11 -10 -10 -10 -9 ------- Run | Scr Mat Min Exi Min Robot Analysis Total . | . . . . . Derelict Logs Recovered 1 | . . 1 . . Drone Launches . | . . . . . Drone Recoveries . | . . . . . Exploration | -11 -10 -10 -10 -9 ------------- Run | Scr Mat Min Exi Min Turns Passed 2296 | 82 1226 114 410 464 Spaces Moved 1038 | 42 582 67 237 110 Core 18 | 11 . . . 7 Treads 998 | 31 582 67 237 81 Legs . | . . . . . Wheels 22 | . . . . 22 Hover . | . . . . . Flight . | . . . . . Fastest Speed 50 | 50 160 160 160 110 Average Speed 166 | 151 161 160 169 195 Slowest Speed 650 | 200 180 160 180 650 Overloaded Moves . | . . . . . Propulsion Burnouts . | . . . . . Robots Hopped . | . . . . . Cave-ins Triggered . | . . . . . Exploration Rate (%) 32 | 4 64 13 61 22 Regions Visited 4 Branch Regions 3 Pre-discovered Areas 1 | . 1 . . . Known Exits Taken . | . . . . . Unknown Exits Taken 4 | 1 1 1 1 . Scrap Searched 1 | . . . . 1 Spaces Dug . | . . . . . Terrain Destroyed . | . . . . . Melee . | . . . . . Projectile . | . . . . . AOE . | . . . . . Actions | -11 -10 -10 -10 -9 --------- Run | Scr Mat Min Exi Min Total 1401 | 51 736 71 245 298 Wait 185 | . 44 . . 141 Move 1034 | 41 581 66 236 110 Hop . | . . . . . Pick Up 6 | . 6 . . . Fast Attach 19 | 7 5 . 4 3 Attach 3 | . 1 . . 2 Detach 1 | . 1 . . . Swap 5 | . 4 . . 1 Drop 7 | . 2 . 5 . Fire 127 | 3 81 2 . 41 Melee . | . . . . . Ram . | . . . . . Kick . | . . . . . Crush 14 | . 11 3 . . Escape Stasis . | . . . . . Rewire . | . . . . . Trap . | . . . . . Miscellaneous . | . . . . . Route ------- -11/Scrapyard -10/Materials (discovered 3 exits: [*Mat x2] / [*Min]) -10/Mines (discovered 2 exits: [*Mat] / *Exi) -10/Exiles -9/Mines History --------- Turn | Location | Event 10 | -11/Scrapyard | Discovered new exit (range 16) 83 | -11/Scrapyard | Entered Materials 311 | -10/Materials | Build established: Mutant 475 | -10/Materials | Discovered new exit (range 3) 561 | -10/Materials | Lost 3 parts (1p2w) 635 | -10/Materials | Core integrity fell below 50% 795 | -10/Materials | Discovered new exit (range 10) 1242 | -10/Materials | Discovered new exit (range 6) 1285 | -10/Materials | Central database locked down 1309 | -10/Materials | Entered Mines 1329 | -10/Mines | Learned 2 Materials zone layouts 1330 | -10/Mines | Discovered new exit (range 13) 1417 | -10/Mines | Deemed a non-threat by the Exiles lab entrance 1417 | -10/Mines | Discovered new exit (range 5) 1423 | -10/Mines | Entered Exiles 1462 | -10/Exiles | Met 8R-AWN 1489 | -10/Exiles | Met EX-HEX 1532 | -10/Exiles | Met EX-BIN 1553 | -10/Exiles | Aligned with FarCom system 1555 | -10/Exiles | Given EX-Vault access code 1599 | -10/Exiles | Opened EX-Vault 1608 | -10/Exiles | Found Prototype Device 1608 | -10/Exiles | Identified Trap Reconfigurator 1617 | -10/Exiles | Found Prototype Energy Cannon 1617 | -10/Exiles | Identified Latent Energy Streamer 1623 | -10/Exiles | Found Prototype Energy Cannon 1623 | -10/Exiles | Identified Firepult 1665 | -10/Exiles | Warned to stay clear of 0b10 Research branches 1714 | -10/Exiles | Met EX-DEC 1818 | -10/Exiles | Discovered new exit (range 10) 1833 | -10/Exiles | Stole two prototypes: Trap Reconfigurator, Latent Energy Streamer 1833 | -10/Exiles | Entered Mines 1945 | -9/Mines | Excavation squad dispatched 1945 | -9/Mines | A large section of the Mines collapsed 2098 | -9/Mines | Core integrity fell below 20% 2195 | -9/Mines | Excavation squad dispatched 2297 | -9/Mines | Self-destructed Last Messages --------------- 02112_ G-34 Mercenary destroyed. 02114_ Acquired 24 matter. 02117_ Acquired Mining Laser. 02135_ U-05 Engineer lays Concrete. 02156_ Acquired Lgt. Ion Engine. 02160_ Acquired 16 matter. 02161_ Acquired 5 matter. 02185_ Mining Laser destroyed. 02193_ Lgt. Treads destroyed. 02195_ ALERT: Derelict activity in mines confirmed. Dispatching additional escorted excavation squad. 02199_ as-48235 destroyed. 02227_ Acquired 23 matter. 02247_ Acquired Wheel. 02257_ K-01 Serf collects debris. 02263_ U-05 Engineer lays Concrete. 02267_ T-07 Excavator is excavating. 02267_ U-05 Engineer lays Concrete. 02276_ Lgt. Ion Engine destroyed. 02292_ Destroyed Sml. Laser. Map ----- +----------------------------------------------------+ | ????????????????????# *##???????????? | | ?????????########??#%* #???????????? | | ?????????# ### != #???????????? | | ?????????# !! # #????????????? | | ?????????# !!! #?????????????? | | ???????### ! %%% ##?????????????? | | ??????## !! %# ##??????????????? | | ??????# %% #####???????????????? | | ??????# ######???????????????????? | | ?????## #????????????????????????? | | ?????# #????????????????????????? | | ?????# g ##????????????????????????? | | ?????# #?????????????????????????? | | ?????## g##?????????????????????????? | | ??????# #??????????????????????????? | | ??????# t#??????????????????????????? | | ??????# #####??????????????????????? | | ??????# !## ##?????????????????????? | | ?????## !%|! #?????????????????????? | | ???### *%! ##????????????????????? | | ??## *= ###??????????????????? | | ??# * = ##?????????????????? | | ??# %! #?????????????????? | | ??## |u #?????????????????? | | ???## #?????????????????? | | ????# @ ##?????????????????? | | ????# #??????????????????? | | ????## ##??????????????????? | | ?????## ##???????????????????? | | ??????#### #????????????????????? | | ?????????## ##???????????????????? | | ?## ?????## ;##??????????????????? | | ?# ??## #??????????????????? | | ?# ## g##?????????????????? | | ?# g#####?????????????? | | ??# ;; ; ## ##???????? | | ??# ;;t ! != " #???????? | | ??# t |%!% ???? | | ??## ######## %= ##?????? | | ???# ##???????#" "#??????? | | ???## #####????????? ##??????? | | ????####???????????????? #???????? | | ????????????????????????? #???????? | | ?????????????????????????? #???????? | | ???????????????????????????#????????? | | ????????????????????????????????????? | | ????????????????????????????????????? | | ????????????????????????????????????? | | ????????????????????????????????????? | | ????????????????????????????????????? | +----------------------------------------------------+ Best States ------------- Heat Dissipation 25 Energy Generation 10 Energy Capacity 125 Matter Stores 300 Matter Capacity 300 Sight Range 16 Terrain Scan Range 16 Terrain Scan Density 10 Evasion (%) 40 Recoil Reduction 2 Item Schematics ----------------- None Robot Schematics ------------------ None Fabricated ------------ Nothing Alien Tech Used ----------------- None Achievements -------------- None Challenges ------------ None Game ------ Seed SupersonicImpactModule Manual? 0 Play Time 00:13:59 Cumulative 1051.1 hours Start 2020.05.01 @ 17:56:32 End 2020.05.01 @ 18:08:58 Sessions 1 Manual Loads 0 Difficulty Rogue Special Mode None Game No. 636 Rogue 636 Adventurer 0 Explorer 0 Win Type - Total 18 Types 10/1/4/3/0/0/0 Lore% 89 Gallery% 94 Achievement% 81 Wizard Run 0 Options --------- ASCII 0 Keyboard 0 Movement Mouse Keybinds 0 Fullscreen 2 Font 24/Crisp Map View 76x50 Tactical HUD 1 Map Filters NONE Filters NONE Steam 1 RUN: 3a5db597-eb39-4274-88e7-80c40645ed2b